Cogmind - Beta 14 @@@ ROGUE MODE // 2024.08.12 @ 22:26:52 Player: Jammed Result: Self-destructed Performance ------------- Evolutions (5) 2500 Regions Visited (11) 2200 Robots Destroyed (296) 1480 Value Destroyed (10831) 10831 Prototype IDs (17) 340 Alien Tech Used (0) 0 Bonus (6049) 6049 TOTAL SCORE: 23400 Bonus ------- Triggered High Security 500 High Alert Combat Kills 3078 Follower Combat Kills 1741 Network Hubs Disabled 200 Registered with UFD 300 Built Enhanced Grunts 300 Met R17 at Cetus 500 Friendly Fire -570 Cogmind --------- Core Integrity 776/1000 Matter 71/300 Energy 27/100 System Corruption 3% Temperature Hot (217) Movement Immobile (Siege) Location -5/Factory Parts ------- > --- POWER (1) -------- (None) > --- PROPULSION (4) --- Centrium Heavy Treads > --- UTILITY (6) ------ Advanced Heat Sink High-capacity Storage Unit Kinecellerator > --- WEAPON (6) ------- (None) > --- INVENTORY (20) --- Centrium Heavy Treads High-capacity Matter Pod (112) Experimental Terrain Scanner Transmission Jammer Centrium Medium Armor Plating Centrium Medium Armor Plating Graphene Brace Authchip [Propulsion] Authchip [Propulsion] Backup Laser I Gauss Rifle Gauss Rifle Coil Gun Coil Gun KE Penetrator KE Penetrator Powered Hammer DRS Beacon (Ready) Peak State ------------ > --- POWER ------------ Quantum Reactor > --- PROPULSION ------- Centrium Heavy Treads Centrium Heavy Treads > --- UTILITY ---------- Scrap Suit High-capacity Storage Unit Advanced Sensor Array Centrium Medium Armor Plating Improved Focal Shield > --- WEAPON ----------- Heavy Machine Gun Heavy Machine Gun Advanced KE Penetrator Advanced KE Penetrator Advanced KE Penetrator Advanced KE Penetrator > --- INVENTORY -------- Centrium Heavy Treads Centrium Heavy Treads Advanced Heat Sink High-capacity Matter Pod Experimental Terrain Scanner Kinecellerator Transmission Jammer Centrium Medium Armor Plating Centrium Medium Armor Plating Authchip [Propulsion] Authchip [Propulsion] Gauss Rifle Gauss Rifle Coil Gun Coil Gun Powered Hammer DRS Beacon [Rating: 127] Favorites ----------- Power Improved Ion Engine Engine Improved Ion Engine Power Core Fission Core Reactor Quantum Reactor Propulsion Light Treads Treads Light Treads Leg Aluminum Leg Wheel Wheel Utility High-capacity Storage Unit Device Scrap Suit Storage High-capacity Storage Unit Processor Improved Signal Interpreter Protection Hardened Light Armor Plating Weapon Heavy Assault Rifle Ballistic Gun Heavy Assault Rifle Special Weapon Mining Laser Impact Weapon Powered Hammer Build | -11 -10 -9 -9 -9 -9 -6 -6 -6 -6 -6 -5 ------- Run | Yrd Mat Mat Sto Rec Scr Fac Ext Cet Arc Hub Fac Slots Evolved 10 | . . 2 . . . 6 . . . . 2 Power . | . . . . . . . . . . . . Propulsion 2 | . . 1 . . . 1 . . . . . Utility 4 | . . . . . . 3 . . . . 1 Weapon 4 | . . 1 . . . 2 . . . . 1 Parts Attached 188 | 1 10 16 37 4 5 44 19 23 2 8 19 Power 13 | . 1 1 2 . . 4 2 2 . 1 . Engine 8 | . 1 1 2 . . 3 1 . . . . Core 2 | . . . . . . 1 1 . . . . Reactor 3 | . . . . . . . . 2 . 1 . Propulsion 40 | . 4 6 9 4 1 6 5 3 1 . 1 Treads 38 | . 2 6 9 4 1 6 5 3 1 . 1 Leg 1 | . 1 . . . . . . . . . . Wheel 1 | . 1 . . . . . . . . . . Hover . | . . . . . . . . . . . . Flight . | . . . . . . . . . . . . Utility 49 | 1 2 3 1 . 4 16 6 4 1 1 10 Device 30 | 1 . 2 . . 3 11 4 1 1 1 6 Storage 3 | . 2 1 . . . . . . . . . Processor 2 | . . . . . . 1 1 . . . . Hackware . | . . . . . . . . . . . . Protection 14 | . . . 1 . 1 4 1 3 . . 4 Artifact . | . . . . . . . . . . . . Weapon 86 | . 3 6 25 . . 18 6 14 . 6 8 Energy Gun . | . . . . . . . . . . . . Energy Cannon . | . . . . . . . . . . . . Ballistic Gun 69 | . 2 6 19 . . 16 5 10 . 4 7 Ballistic Cannon . | . . . . . . . . . . . . Launcher . | . . . . . . . . . . . . Special Weapon 2 | . 1 . . . . . . 1 . . . Impact Weapon 15 | . . . 6 . . 2 1 3 . 2 1 Slashing Weapon . | . . . . . . . . . . . . Piercing Weapon . | . . . . . . . . . . . . Special Melee Weapon . | . . . . . . . . . . . . Unidentified Prototypes 3 | . . . . . . . . 3 . . . Corrupted Parts 3 | . . . . . . . . 3 . . . System Corruption 10 | . . . . . . . . 10 . . . Parts Lost 32 | . 3 2 3 . . 8 5 . . . 11 Power 3 | . 1 1 . . . . . . . . 1 Propulsion 5 | . 1 . . . . . 3 . . . 1 Utility 9 | . . 1 1 . . 2 1 . . . 4 Weapon 15 | . 1 . 2 . . 6 1 . . . 5 Highest Loss Streak 8 | . 2 1 1 . . 2 3 . . . 8 To Critical Strikes . | . . . . . . . . . . . . Average Slot Usage (%) 92 | . 90 98 98 100 99 92 90 80 80 80 81 Engine 6 | . 6 10 10 11 11 1 . . . . . Core 1 | . . . . . . 4 5 . . . . Reactor 1 | . . . . . . . . 5 6 6 4 Treads 24 | . . 32 32 33 33 26 24 13 13 13 10 Leg 1 | . 20 . . . . . . . . . . Device 9 | . 14 10 1 . 6 13 15 13 13 13 17 Storage 9 | . 14 11 11 11 11 6 6 6 6 6 5 Protection 5 | . . . 8 11 4 4 3 5 6 6 4 Ballistic Gun 31 | . 26 32 31 33 33 32 32 29 33 32 34 Peak Build Rating 127 | 7 7 15 17 18 21 59 65 116 116 116 127 Average Rating 43 | 6 6 13 15 17 18 43 61 105 115 115 123 On Entrance 46 | 6 7 7 15 17 18 20 59 65 116 116 114 Naked Turns . | . . . . . . . . . . . . Heaviest Build 109 | 14 26 60 64 61 61 85 85 101 101 101 109 Greatest Support 160 | 20 40 60 60 60 60 82 92 160 160 160 160 Greatest Overweight (x) 2 | . 2 . 1 1 1 1 1 1 . . 1 Average Overweight (x) . | . . . . 1 . . . . . . . Largest Inventory Capacity 20 | 8 15 20 20 20 20 20 20 20 20 20 20 Average Capacity 18 | 8 10 15 20 20 20 20 20 20 20 20 20 Most Carried 20 | 7 11 15 20 20 20 20 20 20 20 20 20 Average Carried 17 | 6 8 11 17 19 19 18 17 19 19 20 19 Final Capacity 20 | 8 15 20 20 20 20 20 20 20 20 20 20 Final Carried 20 | 7 7 15 20 20 20 17 19 20 20 20 19 Class Distribution -------------------- 61% | Scavenger-Tank 15% | Scavenger-Gunner 8% | Mutant 8% | Scavenger-Executioner Dominant Class ---------------- Mutant | -10/Materials Scavenger-Gunner | -9/Materials Scavenger-Tank | -9/Storage Scavenger-Tank | -9/Recycling Scavenger-Tank | -9/Scraptown Scavenger-Tank | -6/Factory Scavenger-Tank | -6/Extension Scavenger-Tank | -6/Cetus Scavenger-Tank | -6/Archives Scavenger-Tank | -6/Hub_04(d) Scavenger-Executioner | -5/Factory Resources | -11 -10 -9 -9 -9 -9 -6 -6 -6 -6 -6 -5 ----------- Run | Yrd Mat Mat Sto Rec Scr Fac Ext Cet Arc Hub Fac Matter Collected 9895 | 238 495 608 1198 178 57 2018 1471 648 124 758 2102 Remotely . | . . . . . . . . . . . . Salvage Created 14195 | 82 634 999 1788 299 . 2534 2093 396 95 1256 4019 Parts 741 | 7 35 79 100 16 . 147 92 23 4 55 183 Haulers Intercepted 8 | . 2 . 5 . . . . . . . 1 Recyclers Shooed 9 | . . . . . . 4 2 . . 2 1 Parts Field Recycled . | . . . . . . . . . . . . Retrieved Matter . | . . . . . . . . . . . . Parts Self-Destructed . | . . . . . . . . . . . . Prevented . | . . . . . . . . . . . . Kills | -11 -10 -9 -9 -9 -9 -6 -6 -6 -6 -6 -5 ------- Run | Yrd Mat Mat Sto Rec Scr Fac Ext Cet Arc Hub Fac Combat Hostiles Destroyed 208 | . 13 24 29 4 . 31 23 7 . 17 60 Melee 1 | . . . . . . . . . . . 1 Guns 203 | . 13 24 29 4 . 31 23 7 . 17 55 AOE 4 | . . . . . . . . . . . 4 Classes Destroyed 19 | 2 4 3 2 . . 5 . . . . 3 Worker 13 | . . . . . . 5 . . . 2 6 Builder 13 | . . . 1 . . 7 . . . 2 3 Tunneler 6 | 1 . 1 . . . . 3 . . . 1 Hauler 8 | . 2 . 5 . . . . . . . 1 Recycler 18 | 1 . . 4 1 . 4 5 . . 1 2 Carrier 1 | . . . . . . . . . . . 1 Mechanic 5 | . . 1 2 . . 1 . . . 1 . Operator 3 | . . . 1 . . . 1 . 1 . . Watcher 19 | . 3 3 2 . . 5 2 . . 2 2 Swarmer 37 | . 3 8 7 . . 6 2 3 . . 8 Saboteur 2 | . . . . . . . . . . . 2 Grunt 91 | . 10 9 9 . . 11 11 . . 14 27 Brawler 7 | . . 1 . . . 1 . . . 2 3 Duelist 6 | . . . . . . 2 1 . . . 3 Protector 1 | . . . . . . . . . . . 1 Sentry 35 | . . 6 13 4 . 3 3 . . . 6 Hunter 12 | . . . . . . 2 5 1 . . 4 Programmer 13 | . . . . . . 5 1 . . 1 6 Heavy 1 | . . . . . . 1 . . . . . Cetus Guard 3 | . . . . . . . . 3 . . . Thug 1 | . . . . . . . . . 1 . . Savage 1 | . . . . . . . . 1 . . . Best Kill Streak 11 | 1 3 5 4 1 . 8 10 3 1 4 11 Combat Bots Only 10 | . 3 4 4 1 . 3 4 3 . 3 10 Max Kills in Single Turn 5 | 1 2 2 1 1 . 2 2 2 1 2 5 Gunslinging 2 | . 1 1 . . . . 1 1 . 1 2 Exploded 4 | . . . . . . . . . . . 4 Melee 1 | . . . . . . . . . . . 1 Uniques/NPCs Destroyed . | . . . . . . . . . . . . Combat | -11 -10 -9 -9 -9 -9 -6 -6 -6 -6 -6 -5 -------- Run | Yrd Mat Mat Sto Rec Scr Fac Ext Cet Arc Hub Fac Hostile Shots Fired 946 | . 65 71 118 12 . 221 122 17 5 47 268 Missed 238 | . 11 17 29 6 . 61 33 5 1 17 58 Damage Taken 11352 | . 613 669 1112 96 . 2728 1312 245 95 516 3966 Core 854 | . 143 89 72 . . 180 102 25 . 19 224 Absorbed by Shields 470 | . . . . . . 394 28 48 . . . Reduced by Siege Mode 298 | . . . . . . . . . . 5 293 Ignored by Resistances 31 | . . . . . . . . . . . 31 Regen/Repaired (Parts) 1127 | . . 256 294 . . 179 11 15 . . 372 Core Remaining (%) 65 | 100 42 . . . 59 . . . . 61 . Volleys Fired 511 | 7 69 55 93 8 . 89 59 19 5 27 80 Largest 6 | 2 2 3 3 3 . 5 5 5 5 5 6 Hottest 203 | 40 120 69 69 69 . 146 148 165 170 170 203 Shots Fired 2060 | 14 138 165 279 25 . 440 294 88 25 133 459 Gun 2056 | 14 136 165 279 25 . 440 294 86 25 133 459 Cannon . | . . . . . . . . . . . . Launcher . | . . . . . . . . . . . . Special 4 | . 2 . . . . . . 2 . . . Kinetic 2056 | 14 136 165 279 25 . 440 294 86 25 133 459 Thermal 2 | . 2 . . . . . . . . . . Explosive . | . . . . . . . . . . . . Electromagnetic . | . . . . . . . . . . . . Robot Hit Streak 28 | 3 9 20 28 12 . 14 10 5 5 10 26 Robot Miss Streak 7 | 2 4 3 4 2 . 5 7 5 2 4 5 Penetration Max 1 | . . . . . . 1 1 1 1 1 1 Secondary Targets 42 | . 1 2 1 . . 5 4 5 . 4 20 Max Gunslinging Chain 3 | . 1 1 1 . . 1 1 2 . 1 3 Shots Hit Robots 1256 | 8 87 115 175 19 . 265 167 30 18 67 305 Core Hits 576 | 4 35 50 66 9 . 119 80 13 8 38 154 Critical Kills 41 | . . 1 1 . . . 7 1 1 5 25 Critical Parts Destroyed 49 | . . . 2 . . 4 7 1 . 6 29 Critical Strikes 94 | . . 3 3 . . 4 14 2 1 11 56 Destroy 93 | . . 3 2 . . 4 14 2 1 11 56 Smash 1 | . . . 1 . . . . . . . . Melee Attacks 186 | . . . 12 . . 3 34 134 . 2 1 Impact 186 | . . . 12 . . 3 34 134 . 2 1 Slashing . | . . . . . . . . . . . . Piercing . | . . . . . . . . . . . . Sneak Attacks 4 | . . . 3 . . 1 . . . . . Combat Hostiles . | . . . . . . . . . . . . Follow-up Attacks . | . . . . . . . . . . . . Damage Inflicted 29287 | 94 889 1327 2908 305 . 5340 4272 772 527 2153 10700 Guns 28392 | 94 889 1327 2747 305 . 5077 4258 772 523 2109 10291 Cannons . | . . . . . . . . . . . . Explosions 566 | . . . . . . 157 . . . . 409 Melee 249 | . . . 161 . . 88 . . . . . Ramming 80 | . . . . . . 18 14 . 4 44 . Kinetic 28392 | 94 889 1327 2747 305 . 5077 4258 772 523 2109 10291 Thermal . | . . . . . . . . . . . . Explosive 566 | . . . . . . 157 . . . . 409 Electromagnetic . | . . . . . . . . . . . . Impact 249 | . . . 161 . . 88 . . . . . Slashing . | . . . . . . . . . . . . Piercing . | . . . . . . . . . . . . Highest Corruption 13 | . 3 1 1 1 . 3 3 13 13 13 3 Average Corruption 3 | . 2 1 1 1 . 1 3 12 13 13 2 Corruption Purged . | . . . . . . . . . . . . Corruption Blocked . | . . . . . . . . . . . . Effects 229 | . 21 19 26 14 . 5 36 38 10 51 9 Message Errors 38 | . 4 4 6 2 . 1 3 5 5 7 1 Matter Fused 60 | . 7 4 6 4 . . 7 11 1 17 3 Heat Flow Errors 27 | . 4 3 1 1 . 1 7 6 1 3 . Energy Discharges 31 | . 2 3 6 3 . . 4 5 3 5 . Parts Rejected 2 | . 1 1 . . . . . . . . . Parts Fused 3 | . . . . 1 . . . . . 2 . Data Loss (minor) 29 | . . 2 5 1 . 1 6 5 . 7 2 Data Loss (major) 12 | . 1 . 1 1 . . 3 2 . 4 . Misfires 12 | . 1 1 1 1 . 2 2 . . 3 1 Alerts 7 | . 1 . . . . . 1 4 . 1 . Weapon Failures 8 | . . 1 . . . . 3 . . 2 2 Overload Shots . | . . . . . . . . . . . . Overflow Damage 95 | . . . 36 . . 59 . . . . . Projectiles . | . . . . . . . . . . . . Explosions 1 | . . . . . . 1 . . . . . Melee 94 | . . . 36 . . 58 . . . . . Knockbacks 1 | . . . . . . 1 . . . . . Impact 1 | . . . . . . 1 . . . . . Kinetic . | . . . . . . . . . . . . Secondary . | . . . . . . . . . . . . Self-Inflicted Damage 59 | . . . . . . . . . . . 59 Shots 1 | . . . . . . . . . . . 1 Rammed 7 | . . . . . . . 2 . 1 4 . Targets Rammed 8 | . . . . . . 1 2 . 1 4 . Kicked . | . . . . . . . . . . . . Crushed 1 | . . . . . . 1 . . . . . Highest Temperature 393 | . 268 187 189 184 . 373 223 254 251 375 393 Average Temperature 67 | . 84 35 31 44 . 83 21 49 58 129 89 Received Heat Transfer 2967 | . 246 183 369 36 . 508 309 36 . 186 1094 Effects 10 | . . . . . . 2 . . . 6 2 Shutdowns 2 | . . . . . . . . . . 1 1 Energy Bleed 1 | . . . . . . . . . . 1 . Interference 5 | . . . . . . 2 . . . 3 . Matter Decay 2 | . . . . . . . . . . 1 1 Siege Activations 27 | . . . . . . . . 2 . 7 18 Total Turns 461 | . . . . . . . . 6 . 59 396 Longest Duration 92 | . . . . . . . . 4 . 29 92 Robots Corrupted 1 | . . . . . . 1 . . . . . Combat Hostiles . | . . . . . . . . . . . . Parts Fried 3 | . . . 1 . . 1 . 1 . . . Impact Corruptions 3 | . . . 1 . . 2 . . . . . Robots Melted . | . . . . . . . . . . . . Combat Hostiles . | . . . . . . . . . . . . Parts Melted . | . . . . . . . . . . . . Heat Transferred . | . . . . . . . . . . . . Parts Sabotaged 3 | . . . . . . . . . . . 3 Parts Stolen . | . . . . . . . . . . . . Parts Stripped . | . . . . . . . . . . . . Power Chain Reactions . | . . . . . . . . . . . . Alert | -11 -10 -9 -9 -9 -9 -6 -6 -6 -6 -6 -5 ------- Run | Yrd Mat Mat Sto Rec Scr Fac Ext Cet Arc Hub Fac Peak Influence 2310 | 10 174 378 477 220 . 561 622 791 580 1340 2310 Initial 656 | . 6 39 66 175 . . 274 348 316 203 656 Average 336 | 6 64 165 241 70 . 144 310 446 552 826 1181 Maximum Alert Level 5 | . . 1 2 1 . 2 2 3 2 4 5 Low Security (%) 49 | 100 100 79 44 86 . 79 13 . . . . Level 1 24 | . . 20 41 13 . 13 67 40 9 18 . Level 2 11 | . . . 14 . . 6 18 51 90 4 8 Level 3 8 | . . . . . . . . 8 . 62 33 Level 4 4 | . . . . . . . . . . 14 41 Level 5 . | . . . . . . . . . . . 5 High Security 1 | . . . . . . . . . . . 10 Max Security . | . . . . . . . . . . . . Squads Dispatched 55 | . 4 4 1 . . 10 7 . . 10 19 Investigation 20 | . 4 3 . . . 3 4 . . 3 3 Extermination 11 | . . . . . . 5 . . . 2 4 Reinforcement 10 | . . 1 . . . 2 3 . . 3 1 Assault 11 | . . . . . . . . . . 2 9 Garrison 3 | . . . 1 . . . . . . . 2 Intercept . | . . . . . . . . . . . . Searches Triggered . | . . . . . . . . . . . . Construction Impeded 5 | . . . . . . 1 2 . . 2 . Haulers Reinforced 1 | . . . . . . 1 . . . . . Active Scanning Responses . | . . . . . . . . . . . . Cargo Convoy Interrupts . | . . . . . . . . . . . . Stealth | -11 -10 -9 -9 -9 -9 -6 -6 -6 -6 -6 -5 --------- Run | Yrd Mat Mat Sto Rec Scr Fac Ext Cet Arc Hub Fac Distress Signals 15 | . 2 . 4 . . 3 2 2 . . 2 Communications Jammed 29 | . . . . . . 29 . . . . . Distress Signals 27 | . . . . . . 27 . . . . . Times Spotted 339 | . 22 39 42 4 . 40 36 21 7 38 90 Peak Tracking Total 16 | . 4 4 4 1 . 4 4 5 1 4 16 Tactical Retreats 19 | . 1 6 3 . . 1 2 . . 1 5 Traps | -11 -10 -9 -9 -9 -9 -6 -6 -6 -6 -6 -5 ------- Run | Yrd Mat Mat Sto Rec Scr Fac Ext Cet Arc Hub Fac Traps Triggered 15 | . 5 2 2 . . 3 1 . . 2 . Indirectly . | . . . . . . . . . . . . Trap Hack Attempts . | . . . . . . . . . . . . Triggered . | . . . . . . . . . . . . Disarmed . | . . . . . . . . . . . . Reprogrammed . | . . . . . . . . . . . . Reused . | . . . . . . . . . . . . Traps Extracted . | . . . . . . . . . . . . Installed . | . . . . . . . . . . . . Triggered . | . . . . . . . . . . . . Machines | -11 -10 -9 -9 -9 -9 -6 -6 -6 -6 -6 -5 ---------- Run | Yrd Mat Mat Sto Rec Scr Fac Ext Cet Arc Hub Fac Machines Disabled 40 | . . . 2 . . 4 5 4 4 10 11 Max in Single Turn 3 | . . . 1 . . 2 1 2 1 2 3 Garrison Access 3 | . . . 1 . . . . . . 2 . Network Hub 1 | . . . . . . . . . . 1 . Machines Repaired . | . . . . . . . . . . . . Machines Dismantled . | . . . . . . . . . . . . Machines Sabotaged 1 | . . . . . . . . . . 1 . Overloaded Fab Kills . | . . . . . . . . . . . . Hacking | -11 -10 -9 -9 -9 -9 -6 -6 -6 -6 -6 -5 --------- Run | Yrd Mat Mat Sto Rec Scr Fac Ext Cet Arc Hub Fac Machines Accessed 82 | . 10 10 12 12 6 5 14 1 1 5 6 Terminals 49 | . 8 7 9 6 . 1 12 1 . 4 1 Fabricators 3 | . . . . . . 2 . . . . 1 Repair Stations 7 | . . 2 2 . . 1 . . . . 2 Recycling Units 13 | . 2 1 . 6 . . 2 . . . 2 Scanalyzers 1 | . . . . . . 1 . . . . . Garrison Access 2 | . . . 1 . . . . . . 1 . Total Hacks 273 | . 32 31 45 35 23 17 32 2 25 9 22 Successful 167 | . 14 21 26 22 23 8 13 . 25 4 11 Failed 106 | . 18 10 19 13 . 9 19 2 . 5 11 Catastrophic 15 | . . 2 2 1 . 2 3 1 . 1 3 Database Lockouts . | . . . . . . . . . . . . Manual 82 | . 27 13 10 14 . 3 6 1 . 5 3 Terminals 151 | . 29 22 33 19 . 2 28 2 . 8 8 Fabricators 9 | . . . . . . 8 . . . . 1 Repair Stations 31 | . . 8 11 . . 2 . . . . 10 Recycling Units 27 | . 3 1 . 16 . . 4 . . . 3 Scanalyzers 5 | . . . . . . 5 . . . . . Garrison Access 2 | . . . 1 . . . . . . 1 . Terminal Hacks 95 | . 7 9 13 6 23 . 10 . 25 1 1 Record 43 | . . . . . 18 . . . 25 . . Part Schematic 3 | . 1 . . 2 . . . . . . . Robot Schematic 2 | . . . 2 . . . . . . . . Robot Analysis 15 | . 4 3 2 1 4 . 1 . . . . Prototype ID Bank 1 | . . . 1 . . . . . . . . Open Door 9 | . . . 1 . . . 8 . . . . Branch Access Points 2 | . . 1 . . . . . . . . 1 Terminal Index 1 | . . 1 . . . . . . . . . Alert Level 5 | . . 2 1 1 . . 1 . . . . Unreport Threat 1 | . . 1 . . . . . . . . . Locate Traps 4 | . 1 . 3 . . . . . . . . Maintenance Status 1 | . . . . 1 . . . . . . . Hauler Manifests 3 | . 1 1 . 1 . . . . . . . Zone Layout 4 | . . . 3 . . . . . . 1 . Derelict Proto ID Bank 1 | . . . . . 1 . . . . . . Fabricator Hacks 6 | . . . . . . 5 . . . . 1 Network Status 1 | . . . . . . 1 . . . . . Load Schematic 2 | . . . . . . 2 . . . . . Build 3 | . . . . . . 2 . . . . 1 Repair Station Hacks 27 | . . 8 10 . . 2 . . . . 7 Scan Component 14 | . . 4 5 . . 1 . . . . 4 Repair 13 | . . 4 5 . . 1 . . . . 3 Recycling Unit Hacks 12 | . 2 1 . 8 . . 1 . . . . Report Inventory 10 | . 2 1 . 6 . . 1 . . . . Retrieve Components 2 | . . . . 2 . . . . . . . Scanalyzer . | . . . . . . . . . . . . Garrison Access Hacks 1 | . . . 1 . . . . . . . . Seal Access 1 | . . . 1 . . . . . . . . Unauthorized Hacks 26 | . 5 3 2 8 . 1 2 . . 3 2 Terminals 14 | . 4 3 2 2 . . 1 . . 2 . Assimilate 1 | . 1 . . . . . . . . . . Botnet 10 | . 2 2 2 2 . . 1 . . 1 . Operators 2 | . 1 1 . . . . . . . . . Sabotage 1 | . . . . . . . . . . 1 . Fabricators . | . . . . . . . . . . . . Repair Stations 3 | . . . . . . . 1 . . . 2 Recycling Units 7 | . 1 . . 6 . . . . . . . Tunnel 7 | . 1 . . 6 . . . . . . . Fedlink 2 | . . . . . . . . . . . 2 Scrapoids 1 | . . . . . . . 1 . . . . Scanalyzers 1 | . . . . . . 1 . . . . . Extract 1 | . . . . . . 1 . . . . . Garrison Access 1 | . . . . . . . . . . 1 . Jam 1 | . . . . . . . . . . 1 . Data Cores Recovered . | . . . . . . . . . . . . Used . | . . . . . . . . . . . . Hacking Detections 55 | . 10 8 11 8 . 4 8 1 . 2 3 Full Trace Events 13 | . 1 1 3 1 . 2 3 . . 1 1 Feedback Events . | . . . . . . . . . . . . Feedback Blocked . | . . . . . . . . . . . . Robot Schematics Acquired 2 | . . . 2 . . . . . . . . Robots Built . | . . . . . . . . . . . . Authchips . | . . . . . . . . . . . . Time . | . . . . . . . . . . . . Total Robot Build Rating . | . . . . . . . . . . . . Part Schematics Acquired 10 | . 1 . . 2 . 7 . . . . . Parts Built 6 | . . . . . . 4 . . . . 2 Authchips . | . . . . . . . . . . . . Time 130 | . . . . . . 72 . . . . 58 Total Part Build Rating 26 | . . . . . . 12 . . . . 14 Parts Repaired 12 | . . 4 5 . . 1 . . . . 2 Time 604 | . . 116 160 . . 44 . . . . 284 Parts Recycled . | . . . . . . . . . . . . Recycled Matter . | . . . . . . . . . . . . Retrieved Matter . | . . . . . . . . . . . . Retrieved Components 6 | . . . . 6 . . . . . . . Parts Scanalyzed . | . . . . . . . . . . . . Part Schematics Acquired . | . . . . . . . . . . . . Parts Damaged . | . . . . . . . . . . . . Bothacking | -11 -10 -9 -9 -9 -9 -6 -6 -6 -6 -6 -5 ------------ Run | Yrd Mat Mat Sto Rec Scr Fac Ext Cet Arc Hub Fac Used RIF Installer . | . . . . . . . . . . . . Robots Hacked . | . . . . . . . . . . . . Non-combat . | . . . . . . . . . . . . Combat . | . . . . . . . . . . . . Robot Hacks Applied . | . . . . . . . . . . . . Relay Couplers Released 1 | . . . . . . . . . . 1 . Machine Destruction 1 | . . . . . . . . . . 1 . Fabnet Peak Effective % . | . . . . . . . . . . . . Robots Rewired 6 | . . . . . . . 6 . . . . Allies Hacked . | . . . . . . . . . . . . Hacks Repelled . | . . . . . . . . . . . . Allies | -11 -10 -9 -9 -9 -9 -6 -6 -6 -6 -6 -5 -------- Run | Yrd Mat Mat Sto Rec Scr Fac Ext Cet Arc Hub Fac Total Allies 27 | . . . . . . . 22 5 . . . Largest Group 12 | . . . . . . . 12 9 6 4 . Highest-Rated Group 715 | . . . . . . . 358 715 551 361 . Highest-Rated Ally 159 | . . . . . . . 159 159 152 96 . Total Orders 10 | . . . . . . 3 2 3 . 2 . STAY 3 | . . . . . . . . 2 . 1 . ROAM 2 | . . . . . . 2 . . . . . FOLLOW 2 | . . . . . . . . 1 . 1 . EXPLORE 3 | . . . . . . 1 2 . . . . Ally Attacks 287 | . . . . . . . 139 71 14 63 . Total Damage 7709 | . . . . . . . 2377 2367 476 2489 . Kills 48 | . . . . . . . 16 14 4 14 . Allies Corrupted . | . . . . . . . . . . . . Allies Melted 2 | . . . . . . . 1 . . 1 . Intel | -11 -10 -9 -9 -9 -9 -6 -6 -6 -6 -6 -5 ------- Run | Yrd Mat Mat Sto Rec Scr Fac Ext Cet Arc Hub Fac Robot Analysis Total 15 | . 4 3 2 1 4 . 1 . . . . Derelict Logs Recovered . | . . . . . . . . . . . . Drone Launches 4 | . . . . . . 2 2 . . . . Drone Recoveries 3 | . . . . . . 1 2 . . . . Exploration | -11 -10 -9 -9 -9 -9 -6 -6 -6 -6 -6 -5 ------------- Run | Yrd Mat Mat Sto Rec Scr Fac Ext Cet Arc Hub Fac Turns Passed 21659 | 57 1910 2030 3253 2127 2988 2724 2084 1132 261 1283 1810 Spaces Moved 9270 | 30 969 931 1120 843 1590 1180 796 392 139 583 697 Core . | . . . . . . . . . . . . Treads 8272 | . 1 931 1120 843 1590 1180 796 392 139 583 697 Legs 998 | 30 968 . . . . . . . . . . Wheels . | . . . . . . . . . . . . Hover . | . . . . . . . . . . . . Flight . | . . . . . . . . . . . . Fastest Speed 120 | 120 120 160 160 240 160 156 148 152 160 160 160 Average Speed 181 | 120 159 160 215 240 184 171 177 159 160 160 161 Slowest Speed 260 | 120 260 160 240 240 240 240 236 232 160 160 240 Overloaded Moves . | . . . . . . . . . . . . Propulsion Burnouts . | . . . . . . . . . . . . Robots Hopped . | . . . . . . . . . . . . Cave-ins Triggered . | . . . . . . . . . . . . Exploration Rate (%) 65 | 4 97 72 95 99 92 26 87 56 96 46 16 Regions Visited 11 Branch Regions 7 Pre-discovered Areas 7 | . 1 . . 6 . . . . . . . Known Exits Taken 1 | . . 1 . . . . . . . . . Unknown Exits Taken 10 | 1 1 . 1 1 1 1 1 1 1 1 . Scrap Searched 4 | . . . . . 4 . . . . . . Spaces Dug 11 | . 1 . 5 . . 2 . . . 2 1 Terrain Destroyed 335 | . 2 . 5 . . 39 9 4 3 35 238 Melee 10 | . . . 5 . . 2 . . . 2 1 Projectile 168 | . 2 . . . . . 7 4 3 33 119 AOE 152 | . . . . . . 36 . . . . 116 Terrain Rammed . | . . . . . . . . . . . . Walls Destroyed . | . . . . . . . . . . . . Machines Disabled . | . . . . . . . . . . . . Actions | -11 -10 -9 -9 -9 -9 -6 -6 -6 -6 -6 -5 --------- Run | Yrd Mat Mat Sto Rec Scr Fac Ext Cet Arc Hub Fac Total 12605 | 38 1211 1364 1732 933 1655 1642 1242 618 165 854 1151 Wait 2167 | . 149 337 439 66 35 274 258 26 16 231 336 Move 9260 | 29 968 930 1119 842 1589 1179 795 391 138 583 697 Hop . | . . . . . . . . . . . . Pick Up 105 | 1 8 15 16 6 11 22 10 5 1 . 10 Fast Attach 56 | 1 1 6 6 . 2 16 9 7 . 3 5 Attach 44 | . 5 4 7 . . 15 4 1 1 . 7 Detach 6 | . . 2 . . . 3 . 1 . . . Swap 88 | . 4 6 24 4 3 13 6 15 1 5 7 Drop 122 | . 7 9 16 7 15 27 14 19 2 . 6 Fire 511 | 7 69 55 93 8 . 89 59 19 5 27 80 Melee 186 | . . . 12 . . 3 34 134 . 2 1 Ram . | . . . . . . . . . . . . Kick . | . . . . . . . . . . . . Crush 7 | . . . . . . 1 2 . 1 3 . Escape Stasis 2 | . . . . . . . 2 . . . . Rewire 51 | . . . . . . . 49 . . . 2 Trap . | . . . . . . . . . . . . Miscellaneous . | . . . . . . . . . . . . Route ------- -11/Scrapyard -10/Materials (discovered 4 exits: *Mat x3 / [*Min]) -9/Materials (discovered 5 exits: [*Mat] / *Min x2 / *Sto x2) -9/Storage (discovered 2 exits: [*Mat] / *Rec) -9/Recycling (discovered 2 exits: [*Fac] / *Scr) -9/Scraptown (discovered 2 exits: *Fac x2) -6/Factory (discovered 2 exits: *Low / *Ext) -6/Extension (discovered 2 exits: *Fac / *Cet) -6/Cetus (discovered 2 exits: *Fac / *Arc) -6/Archives (discovered 3 exits: *Fac / *Hub x2) -6/Hub_04(d) -5/Factory (discovered 4 exits: [*Fac x2] / Upp x2) History --------- Turn | Location | Event 13 | -11/Scrapyard | Discovered new exit (range 3) 58 | -11/Scrapyard | Entered Materials 152 | -10/Materials | Discovered new exit (range 14) 311 | -10/Materials | Build established: Mutant 317 | -10/Materials | Discovered new exit (range 3) 607 | -10/Materials | Discovered new exit (range 12) 749 | -10/Materials | Discovered new exit (range 13) 913 | -10/Materials | Core integrity fell below 50% 1968 | -10/Materials | Entered another Materials area 1968 | -9/Materials | Evolved 2 slots: Propulsion x1, Weapon x1 1980 | -9/Materials | Discovered new exit (range 14) 2437 | -9/Materials | Build established: Scavenger-Gunner 2611 | -9/Materials | Discovered new exit (range 14) 2832 | -9/Materials | Repaired Hvy. Assault Rifle 3031 | -9/Materials | Discovered new exit (range 14) 3227 | -9/Materials | Discovered new exit (range 10) 3416 | -9/Materials | Discovered new exit (range 7) 3599 | -9/Materials | Repaired Hvy. Assault Rifle 3627 | -9/Materials | Repaired Lgt. Treads 3655 | -9/Materials | Repaired Lgt. Treads 3934 | -9/Materials | Identified exit to Mines 3934 | -9/Materials | Identified exit to Storage 3998 | -9/Materials | Entered Storage 5115 | -9/Storage | Build established: Scavenger-Mutant 5476 | -9/Storage | Build established: Scavenger-Tank 5537 | -9/Storage | Discovered new exit (range 16) 6558 | -9/Storage | Garrison activated, responded to threat 6966 | -9/Storage | Repaired Hvy. Assault Rifle? 6999 | -9/Storage | Used back door to open Recycling access 6999 | -9/Storage | Discovered new exit (range 4) 7020 | -9/Storage | Repaired Imp. Ion Engine 7054 | -9/Storage | Repaired Hvy. Assault Rifle 7097 | -9/Storage | Repaired Hvy. Assault Rifle 7190 | -9/Storage | Repaired Hvy. Assault Rifle 7251 | -9/Storage | Entered Recycling 7897 | -9/Recycling | Scanned before Scraplab entrance 8759 | -9/Recycling | Discovered new exit (range 16) 9301 | -9/Recycling | Entered Scraplab 9320 | -9/Recycling | Discovered new exit (range 2) 9378 | -9/Recycling | Entered Scraptown 9378 | -9/Scraptown | System corruption cleaned by C-Scrubber 10039 | -9/Scraptown | Discovered new exit (range 9) 10252 | -9/Scraptown | Visited Junk Repository 10354 | -9/Scraptown | Visited SPCMW 10402 | -9/Scraptown | Visited Cyclists 10483 | -9/Scraptown | Visited TADAMA 10531 | -9/Scraptown | Visited Awakened 10891 | -9/Scraptown | Visited Observation Area 10960 | -9/Scraptown | Visited UFD Registry 10960 | -9/Scraptown | Registered with UFD as "Deathtalker" 11059 | -9/Scraptown | Entered Cyclist Reading Room 11222 | -9/Scraptown | Visited Scrap Suit Storage 11273 | -9/Scraptown | Visited Supply Room 11318 | -9/Scraptown | Visited Abandonware Association 11337 | -9/Scraptown | Learned abandonware demo "OVRCLOCK.EXE" 11341 | -9/Scraptown | Learned abandonware demo "REBOOT5.EXE" 11390 | -9/Scraptown | Visited Analyses Database 11424 | -9/Scraptown | Visited Derelict Rescue Squad 11434 | -9/Scraptown | Found DRS Beacon 11462 | -9/Scraptown | Visited Science Guys 11513 | -9/Scraptown | Visited DA-N13 Charitable Foundation 11529 | -9/Scraptown | Found DCF Scrap (29 items) 11574 | -9/Scraptown | Visited LU-1G1's Boring Crew 11790 | -9/Scraptown | Visited Infowarlord's Domain 11802 | -9/Scraptown | Found Exp. Terrain Scanner 11857 | -9/Scraptown | Discovered new exit (range 5) 12338 | -9/Scraptown | Found Scrap Suit 12366 | -9/Scraptown | Entered Factory 12366 | -6/Factory | Evolved 6 slots: Propulsion x1, Utility x3, Weapon x2 13418 | -6/Factory | Discovered new exit (range 6) 13431 | -6/Factory | Identified exit to Lower Caves 14300 | -6/Factory | Discovered new exit (range 16) 14515 | -6/Factory | Repaired Gauss Rifle 14581 | -6/Factory | Fabricated Adv. Treads? 14826 | -6/Factory | Fabricated Adv. Treads? 15090 | -6/Factory | Entered Extension 15377 | -6/Extension | Rescued a captive Derelict 15378 | -6/Extension | Rescued a captive Derelict 15774 | -6/Extension | Rescued a captive Derelict 15775 | -6/Extension | Rescued a captive Derelict 15842 | -6/Extension | Rescued a captive Derelict 15988 | -6/Extension | Scrapoid reinforcements arrived 16265 | -6/Extension | Disrupted transfer network 16274 | -6/Extension | Build established: Commander-Tank 16353 | -6/Extension | Spotted B-75 Beast 16360 | -6/Extension | Allies destroyed B-75 Beast 16366 | -6/Extension | Found Scrap Suit 16384 | -6/Extension | Spotted B-75 Beast 16416 | -6/Extension | Allies destroyed B-75 Beast 16451 | -6/Extension | Lost 11 allies 16455 | -6/Extension | Lost 3 parts (1n1u1w) 16727 | -6/Extension | Rescued a captive Derelict 16873 | -6/Extension | Rescued a captive Derelict 16874 | -6/Extension | Rescued a captive Derelict 16896 | -6/Extension | Rescued a captive Derelict 16908 | -6/Extension | Build established: Scavenger-Gunner 16939 | -6/Extension | Rescued A7 17057 | -6/Extension | Rescued a captive Derelict 17123 | -6/Extension | Discovered new exit (range 10) 17124 | -6/Extension | Discovered new exit (range 6) 17174 | -6/Extension | Entered Cetus 17174 | -6/Cetus | Accompanied by 6 allies (A7) 17179 | -6/Cetus | Acquired a Cetus Manufacturing Module code from A7 17195 | -6/Cetus | Spotted Cetus Guard 17195 | -6/Cetus | Spotted Cetus Guard 17196 | -6/Cetus | Destroyed Cetus Guard 17197 | -6/Cetus | Spotted Cetus Guard 17197 | -6/Cetus | Spotted Cetus Guard 17204 | -6/Cetus | Allies destroyed Cetus Guard 17213 | -6/Cetus | Allies destroyed Cetus Guard 17218 | -6/Cetus | Destroyed Cetus Guard 17256 | -6/Cetus | System corruption reached 10% 17317 | -6/Cetus | Started Cetus Manufacturing Module 17342 | -6/Cetus | Manufactured an Enhanced Grunt 17367 | -6/Cetus | Manufactured an Enhanced Grunt 17392 | -6/Cetus | Manufactured an Enhanced Grunt 17417 | -6/Cetus | Manufactured an Enhanced Grunt 17442 | -6/Cetus | Manufactured an Enhanced Grunt 17513 | -6/Cetus | Build established: Scavenger-Tank 17924 | -6/Cetus | Security sweep announced 17963 | -6/Cetus | Discovered new exit (range 15) 18012 | -6/Cetus | Spotted Cetus Guard 18012 | -6/Cetus | Spotted Cetus Guard 18014 | -6/Cetus | Spotted Cetus Guard 18014 | -6/Cetus | Spotted Cetus Guard 18024 | -6/Cetus | Allies destroyed Cetus Guard 18027 | -6/Cetus | Allies destroyed Cetus Guard 18035 | -6/Cetus | Destroyed Cetus Guard 18038 | -6/Cetus | Allies destroyed Cetus Guard 18049 | -6/Cetus | Discovered new exit (range 16) 18065 | -6/Cetus | Met Revision 17 18306 | -6/Cetus | Entered Archives 18306 | -6/Archives | Accompanied by 6 allies (A7) 18356 | -6/Archives | Unable to access archive contents 18374 | -6/Archives | Unable to access archive contents 18379 | -6/Archives | Discovered new exit (range 16) 18393 | -6/Archives | Unable to access archive contents 18400 | -6/Archives | Discovered new exit (range 16) 18409 | -6/Archives | Unable to access archive contents 18416 | -6/Archives | Discovered new exit (range 13) 18567 | -6/Archives | Entered Hub_04(d) 18567 | -6/Hub_04(d) | Accompanied by 4 allies 18808 | -6/Hub_04(d) | Discovered new exit (range 14) 19617 | -6/Hub_04(d) | First assault squad dispatched 19786 | -6/Hub_04(d) | Network Hub disabled 19847 | -6/Hub_04(d) | Spotted Lightning 19847 | -6/Hub_04(d) | Spotted Lightning 19847 | -6/Hub_04(d) | Spotted Lightning 19850 | -6/Hub_04(d) | Entered Factory 19850 | -5/Factory | Evolved 2 slots: Utility x1, Weapon x1 20140 | -5/Factory | Build established: Scavenger-Executioner 20150 | -5/Factory | First assault squad dispatched 20414 | -5/Factory | Repaired Adv. KE Penetrator 20652 | -5/Factory | Garrison activated, responded to threat 20780 | -5/Factory | Fabricated Graphene Brace (x2) 20885 | -5/Factory | Identified exit to Upper Caves 21003 | -5/Factory | Repaired Adv. KE Penetrator? 21238 | -5/Factory | Discovered new exit (range 10) 21383 | -5/Factory | Lost 3 parts (2u1w) 21472 | -5/Factory | High security lockdown imminent 21552 | -5/Factory | High security lockdown engaged 21553 | -5/Factory | Discovered new exit (range 15) 21632 | -5/Factory | Garrison activated, responded to threat 21660 | -5/Factory | Self-destructed Last Messages --------------- 21649_ Critical hit (Burn: +50). 21650_ Slug penetrates G-67 Veteran. 21650_ Slug penetrates G-50 Soldier. 21650_ Slug penetrates Wall. 21651_ The unstable cave ceiling collapses. 21652_ Penetrated by Slug. 21653_ The unstable cave ceiling collapses. 21653_ 61 Matter crushed. 21653_ Slug penetrates G-50 Soldier. 21653_ G-50 Soldier destroyed. 21655_ Critical hit (Burn: +37). 21655_ Adv. KE Penetrator destroyed. 21657_ Slug penetrates G-50 Soldier. 21657_ Slug penetrates Wall. 21658_ Adv. KE Penetrator blown off. 21658_ KE Penetrator blown off. 21658_ Centrium Medium Armor Plating blown off. 21658_ E-15 Imp destroyed. 21658_ Penetrated by Slug. 21658_ Structural Scanner destroyed. Map ----- +----------------------------------------------------+ | ?????????????????????????????????????????????????? | | ?????????????????????????????????????????????????? | | ?????????????????????????????????????????????????? | | ?????????????????????????????????????????????????? | | ?????????????????????????????????????????????????? | | ?????????????????????????????????????????????????? | | ?????????????????????????????????????????????????? | | ?????????????????????????????????????????????????? | | ?????????????????????????????????????????????????? | | ?????????????????????????????????????????????????? | | ?????????????????????????????????????????????????? | | ?????????????????????????????????????????????????? | | ?????????????????????????????????????????????????? | | ?????????????????????????????????????????????????? | | ????????????????? # ????????????????????????????? | | ?????????????????### ????????????????????????????? | | ???????????????####= ????????????????????????????? | | ???????????????####*g????????????????????????????? | | ??????????????? =[%!=???????????????????????????? | | ?????????????????##=!%???????????????????????????? | | ?????????????????##!%=% #????????????????????????? | | ??????????????#######*;## ???????????????????????? | | ??????????????##;;##;g! # ##"???????????????? | | ?????????????? + #;;;*;;;########"???????????????? | | ?????????????? # ## =%!!%""""" #"???????????????? | | ?????????????? # ## g=%=@""T""!# ???????????????? | | ?????????????? # h T=%[%=]]] =########?###?????? | | ?????????????? # ## ==[!%]] ####### ##?????? | | ??????????????## h; ![!%=][%[ %=!%=!*< ??? | | ??????????? ###+;# ]]=!%!! ###### !##?????? | | ???????????####### %]%![ #######?###?????? | | ???????????####### *[!! ##??????????????? | | ???????????????### =? !=! #########???????? | | ???????????????##; ############?????? | | ???????????????########; # # #####????? | | ???????????????######## # g !" #????? | | ?????????????????????##### % ###????? | | ??????????################ ##????? | | ?????????################## g ##????? | | ?????????### *! = = + #????? | | ?????????##" ############## # ?????? | | ?????????##" "########### # ?????? | | ?????????###=!##?????????# "F" ???????? | | ?????????###[=###???????## """" ???????? | | ??????????## # ##???????### ???????? | | ??????????##*####???????########+#""""""""???????? | | ??????????## ####????????####### #####???????? | | ??????????##=##???????????????????? # ???????? | | ??????????##%##???????????????????? # ??????????? | | ??????????##=##????????????????????? + ??????????? | +----------------------------------------------------+ Best States ------------- Heat Dissipation 59 Energy Generation 25 Energy Capacity 350 Matter Stores 300 Matter Capacity 300 Sight Range 16 Robot Scan Range 16 Terrain Scan Range 30 Terrain Scan Density 10 Jamming Range 12 Armor Coverage 450 Resistance: KI 25 Evasion (%) 55 Recoil Reduction 4 Kinecelleration 30 Authchip Count 3 Item Schematics ----------------- Hcp. Storage Unit | -10/Materials | Hacked Adv. Treads | -9/Recycling | Hacked Hrd. Heavy Armor Plating | -9/Recycling | Hacked Gravmag System | -6/Factory | Extracted Maul | -6/Factory | Extracted Nuclear Pulse Thruster | -6/Factory | Extracted Terrain Scan Processor | -6/Factory | Extracted Lrn. Missile Launcher | -6/Factory | Extracted Plasma Cannon | -6/Factory | Extracted Lyr. Light Armor Plating | -6/Factory | Extracted Robot Schematics ------------------ S-10 Pest | -9/Storage | Hacked B-36 Bruiser | -9/Storage | Hacked Fabricated ------------ Adv. Treads | x2 | -6/Factory Adv. Treads | x2 | -6/Factory Graphene Brace | x2 | -5/Factory | Preloaded Alien Tech Used ----------------- None Achievements -------------- Preemptive Strike Challenges ------------ None Game ------ Seed ConstructCoolingPurifier Manual? 0 Play Time 02:53:25 Cumulative 191.8 hours Start 2024.08.11 @ 01:50:43 End 2024.08.12 @ 22:26:52 Sessions 7 Manual Loads 0 Difficulty Rogue Special Mode None Game No. 125 Rogue 125 Adventurer 0 Explorer 0 Win Type - Total 2 Types 1/0/0/1/0/0/0/0/0 Lore% 63 Gallery% 59 Achievement% 58 Wizard Run 0 Options --------- Layout 0 ASCII 0 Keyboard 0 Movement Mouse Keybinds 0 Fullscreen 1 Font 18/SmallcapsGlow Map View 76x50 Zoom Use 0% Tactical HUD 1 Map Filters NONE Filters NONE Steam 1 RUN: 9b7b4e91-4424-4bf7-b894-52dd0c4747bd